lending/lending_fUSD_20240507
["ID","MTS","AMOUNT","RATE_DAILY","PERIOD"]
[326550090,1715105544864,-602.95,0.00019178,2]
[326550091,1715105544901,-507.22542052,0.00019178,2]
[326550092,1715105544915,-578.54,0.00019178,2]
[326550093,1715105544930,-628.97,0.00019178,2]
[326550094,1715105544949,-425.70065707,0.00019178,2]
[326550095,1715105544961,-500.0,0.00019178,2]
[326550096,1715105544972,-500.0,0.00019178,2]
[326550097,1715105544993,-500.0,0.00019178,2]
[326550098,1715105545004,-500.0,0.00019178,2]
[326550099,1715105545022,-500.0,0.00019178,2]
[326550100,1715105545052,-500.0,0.00019178,2]
[326550101,1715105545064,-857.63,0.00019178,2]
[326550102,1715105545078,-1237.72,0.00019178,2]
[326550103,1715105545104,-500.0,0.00019178,2]
[326550104,1715105545114,-1373.85,0.00019178,2]
[326550105,1715105545125,-506.85824658,0.00019178,2]
[326550106,1715105545135,-1020.3,0.00019178,2]
[326550107,1715105545146,-500.0,0.00019178,2]
[326550108,1715105545159,-500.0,0.00019178,2]
[326550109,1715105545169,-500.0,0.00019178,2]
[326550110,1715105545179,-514.16,0.00019178,2]
[326550111,1715105545189,-539.47,0.00019178,2]
[326550112,1715105545200,-1646.07,0.00019178,2]
[326550113,1715105545220,-2048.87,0.00019178,2]
[326550114,1715105545231,-6014.47,0.00019178,2]
[326550115,1715105545241,-508.46938298,0.00019178,2]
[326550116,1715105545251,-192.904275,0.00019178,2]
[326550117,1715105545264,-500.0,0.00019178,2]
[326550118,1715105545276,-1036.58,0.00019178,2]
[326550119,1715105545321,-1252.57,0.00019178,2]
[326550120,1715105545337,-500.0,0.00019178,2]
[326550121,1715105545349,-500.0,0.00019178,2]
[326550122,1715105545360,-150.0,0.00019178,2]
[326550123,1715105545370,-665.98,0.00019178,2]
[326550124,1715105545386,-500.0,0.00019178,2]
[326550125,1715105545420,-500.0,0.00019178,2]
[326550126,1715105545437,-500.0,0.00019178,2]
[326550127,1715105545456,-1013.84,0.00019178,2]
[326550128,1715105545688,-151.0,0.00019178,2]
[326550129,1715105545699,-151.0,0.00019178,2]
[326550130,1715105545710,-500.0,0.00019178,2]
[326550131,1715105545728,-486.72276842,0.00019178,2]
[326550132,1715105545757,-289.53538156,0.00019178,2]
[326550133,1715105545773,-531.24,0.00019178,2]
[326550134,1715105545799,-500.0,0.00019178,2]
[326550135,1715105545809,-1038.38,0.00019178,2]
[326550136,1715105545824,-11885.09,0.00019178,2]
[326550137,1715105545836,-500.0,0.00019178,2]
[326550138,1715105545849,-507.21148519,0.00019178,2]
[326550139,1715105545863,-506.92137695,0.00019178,2]
[326550140,1715105545877,-500.0,0.00019178,2]
[326550141,1715105545903,-500.0,0.00019178,2]
[326550142,1715105545913,-519.72,0.00019178,2]
[326550143,1715105545925,-500.0,0.00019178,2]
[326550144,1715105545936,-500.0,0.00019178,2]
[326550145,1715105545948,-500.0,0.00019178,2]
[326550146,1715105545959,-500.0,0.00019178,2]
[326550147,1715105545970,-7456.46,0.00019178,2]
[326550148,1715105545981,-500.0,0.00019178,2]
[326550149,1715105545991,-500.0,0.00019178,2]
[326550150,1715105546003,-8356.91,0.00019178,2]
[326550151,1715105546013,-500.0,0.00019178,2]
[326550152,1715105546028,-1305.53,0.00019178,2]
[326550153,1715105546038,-262.613639,0.00019178,2]
[326550154,1715105546051,-785.17,0.00019178,2]
[326550155,1715105546070,-500.0,0.00019178,2]
[326550156,1715105546080,-500.0,0.00019178,2]
[326550157,1715105546112,-958.49,0.00019178,2]
[326550158,1715105546123,-2589.73,0.00019178,2]
[326550159,1715105546159,-762.88,0.00019178,2]
[326550160,1715105546170,-2572.94,0.00019178,2]
[326550161,1715105546181,-500.0,0.00019178,2]
[326550162,1715105546192,-500.0,0.00019178,2]
[326550163,1715105546212,-500.0,0.00019178,2]
[326550164,1715105546233,-513.88,0.00019178,2]
[326550165,1715105546244,-790.81,0.00019178,2]
[326550166,1715105546254,-896.68,0.00019178,2]
[326550167,1715105546266,-544.84,0.00019178,2]
[326550168,1715105546276,-500.0,0.00019178,2]
[326550169,1715105546286,-500.0,0.00019178,2]
[326550170,1715105546308,-500.0,0.00019178,2]
[326550171,1715105546319,-500.0,0.00019178,2]
[326550172,1715105546329,-1985.12,0.00019178,2]
[326550173,1715105546340,-500.0,0.00019178,2]
[326550174,1715105546351,-500.0,0.00019178,2]
[326550175,1715105546361,-500.0,0.00019178,2]
[326550176,1715105546371,-1258.11,0.00019178,2]
[326550177,1715105546382,-151.0,0.00019178,2]
[326550178,1715105546399,-151.0,0.00019178,2]
[326550179,1715105546421,-1700.29,0.00019178,2]
[326550180,1715105546440,-4651.14,0.00019178,2]
[326550181,1715105546451,-500.0,0.00019178,2]
[326550182,1715105546463,-500.0,0.00019178,2]
[326550183,1715105546474,-500.0,0.00019178,2]
[326550184,1715105546501,-500.0,0.00019178,2]
[326550185,1715105546515,-500.0,0.00019178,2]
[326550186,1715105546533,-676.07,0.00019178,2]
[326550187,1715105546546,-959.08,0.00019178,2]
[326550188,1715105546558,-734.9,0.00019178,2]
[326550189,1715105546570,-506.50924716,0.00019178,2]
[326550190,1715105546583,-500.0,0.00019178,2]
[326550191,1715105546596,-698.7,0.00019178,2]
[326550192,1715105546607,-500.0,0.00019178,2]
[326550193,1715105546620,-663.69,0.00019178,2]
[326550194,1715105546630,-660.1,0.00019178,2]
[326550195,1715105546641,-735.96,0.00019178,2]
[326550196,1715105546659,-20091.28,0.00019178,2]
[326550197,1715105546671,-8060.34,0.00019178,2]
[326550198,1715105546683,-1109.96,0.00019178,2]
[326550199,1715105546696,-2834.12,0.00019178,2]
[326550200,1715105546706,-14442.67,0.00019178,2]
[326550201,1715105546716,-500.0,0.00019178,2]
[326550202,1715105546727,-1349.78,0.00019178,2]
[326550203,1715105546744,-1229.5,0.00019178,2]
[326550204,1715105546764,-500.0,0.00019178,2]
[326550205,1715105546777,-500.0,0.00019178,2]
[326550206,1715105546788,-998.22,0.00019178,2]
[326550207,1715105546803,-657.39,0.00019178,2]
[326550208,1715105546820,-500.0,0.00019178,2]
[326550209,1715105546837,-1555.88,0.00019178,2]
[326550210,1715105546848,-500.0,0.00019178,2]
[326550211,1715105546862,-500.0,0.00019178,2]
[326550212,1715105546874,-500.0,0.00019178,2]
[326550213,1715105546893,-2045.92,0.00019178,2]
[326550214,1715105546910,-733.48,0.00019178,2]
[326550215,1715105546933,-44695.36,0.00019178,2]
[326550216,1715105546944,-2381.36,0.00019178,2]
[326550217,1715105546964,-1025.11,0.00019178,2]
[326550218,1715105546981,-500.0,0.00019178,2]
[326550219,1715105546992,-500.0,0.00019178,2]
[326550220,1715105547003,-500.0,0.00019178,2]
[326550221,1715105547013,-1880.09,0.00019178,2]
[326550222,1715105547028,-500.0,0.00019178,2]
[326550223,1715105547058,-1066.97,0.00019178,2]
[326550224,1715105547070,-1387.28,0.00019178,2]
[326550225,1715105547080,-575.88,0.00019178,2]
[326550226,1715105547091,-500.0,0.00019178,2]
[326550227,1715105547102,-2096.8,0.00019178,2]
[326550228,1715105547113,-500.0,0.00019178,2]
[326550229,1715105547157,-500.0,0.00019178,2]
[326550230,1715105547169,-2732.08,0.00019178,2]
[326550231,1715105547185,-840.9,0.00019178,2]
[326550232,1715105547202,-1050.6,0.00019178,2]
[326550233,1715105547213,-500.0,0.00019178,2]
[326550234,1715105547226,-835.2,0.00019178,2]
[326550235,1715105547263,-500.0,0.00019178,2]
[326550236,1715105547276,-3507.75,0.00019178,2]
[326550237,1715105547287,-500.0,0.00019178,2]
[326550238,1715105547300,-2837.98,0.00019178,2]
[326550239,1715105547310,-500.0,0.00019178,2]
[326550240,1715105547325,-2913.55,0.00019178,2]
[326550241,1715105547338,-500.0,0.00019178,2]
[326550242,1715105547356,-825.96,0.00019178,2]
[326550243,1715105547368,-2404.42,0.00019178,2]
[326550244,1715105547379,-1125.59,0.00019178,2]
[326550245,1715105547390,-500.0,0.00019178,2]
[326550246,1715105547402,-500.0,0.00019178,2]
[326550247,1715105547419,-2326.09,0.00019178,2]
[326550248,1715105547433,-500.0,0.00019178,2]
[326550249,1715105547452,-678.75,0.00019178,2]
[326550250,1715105547463,-5312.39,0.00019178,2]
[326550251,1715105547475,-506.54724371,0.00019178,2]
[326550252,1715105547491,-2929.62,0.00019178,2]
[326550253,1715105547502,-500.0,0.00019178,2]
[326550254,1715105547515,-2251.89,0.00019178,2]
[326550255,1715105547532,-500.0,0.00019178,2]
[326550256,1715105547549,-1192.04,0.00019178,2]
[326550257,1715105547560,-995.1,0.00019178,2]
[326550258,1715105547574,-1422.68,0.00019178,2]
[326550259,1715105547589,-500.0,0.00019178,2]
[326550260,1715105547602,-7636.26,0.00019178,2]
[326550261,1715105547618,-5007.09,0.00019178,2]
[326550262,1715105547632,-6856.81,0.00019178,2]
[326550263,1715105547645,-4930.24,0.00019178,2]
[326550264,1715105547656,-1988.76,0.00019178,2]
[326550265,1715105547668,-500.0,0.00019178,2]
[326550266,1715105547684,-500.0,0.00019178,2]
[326550267,1715105547699,-500.0,0.00019178,2]
[326550268,1715105547721,-2775.11,0.00019178,2]
[326550269,1715105547733,-500.0,0.00019178,2]
[326550270,1715105547760,-1155.41,0.00019178,2]
[326550271,1715105547771,-1157.16,0.00019178,2]
[326550272,1715105547784,-790.84,0.00019178,2]
[326550273,1715105547795,-500.0,0.00019178,2]
[326550274,1715105547806,-29416.15,0.00019178,2]
[326550275,1715105547817,-500.0,0.00019178,2]
[326550276,1715105547831,-1981.97,0.00019178,2]
[326550277,1715105547843,-500.0,0.00019178,2]
[326550278,1715105547854,-500.0,0.00019178,2]
[326550279,1715105547881,-500.0,0.00019178,2]
[326550280,1715105547891,-500.0,0.00019178,2]
[326550281,1715105547902,-500.0,0.00019178,2]
[326550282,1715105547911,-794.77,0.00019178,2]
[326550283,1715105547973,-6716.37,0.00019178,2]
[326550284,1715105548014,-500.0,0.00019178,2]
[326550285,1715105548025,-1179.96,0.00019178,2]
[326550286,1715105548036,-1794.84,0.00019178,2]
[326550287,1715105548046,-500.0,0.00019178,2]
[326550288,1715105548057,-1634.78,0.00019178,2]
[326550289,1715105548067,-1100.13,0.00019178,2]
[326550290,1715105548077,-500.0,0.00019178,2]
[326550291,1715105548089,-500.0,0.00019178,2]
[326550292,1715105548120,-10247.08,0.00019178,2]
[326550293,1715105548130,-715.85,0.00019178,2]
[326550294,1715105548141,-500.0,0.00019178,2]
[326550295,1715105548165,-5160.56,0.00019178,2]
[326550296,1715105548175,-1024.0,0.00019178,2]
[326550297,1715105548185,-562.05,0.00019178,2]
[326550298,1715105548195,-4446.43,0.00019178,2]
[326550299,1715105548206,-500.0,0.00019178,2]
[326550300,1715105548219,-500.0,0.00019178,2]
[326550301,1715105548253,-500.0,0.00019178,2]
[326550302,1715105548267,-500.0,0.00019178,2]
[326550303,1715105548279,-500.0,0.00019178,2]
[326550304,1715105548291,-513.77843418,0.00019178,2]
[326550305,1715105548302,-500.0,0.00019178,2]
[326550306,1715105548319,-1668.41,0.00019178,2]
[326550307,1715105548330,-500.0,0.00019178,2]
[326550308,1715105548342,-500.0,0.00019178,2]
[326550309,1715105548353,-500.0,0.00019178,2]
[326550310,1715105548364,-2897.06,0.00019178,2]
[326550311,1715105548407,-2273.27,0.00019178,2]
[326550312,1715105548417,-2266.91,0.00019178,2]
[326550313,1715105548447,-591.11,0.00019178,2]
[326550314,1715105548458,-2711.45,0.00019178,2]
[326550315,1715105548472,-2747.7,0.00019178,2]
[326550316,1715105548483,-2878.06,0.00019178,2]
[326550317,1715105548495,-500.0,0.00019178,2]
[326550318,1715105548506,-2730.02,0.00019178,2]
[326550319,1715105548517,-500.0,0.00019178,2]
[326550320,1715105548536,-727.14,0.00019178,2]
[326550321,1715105548552,-680.44,0.00019178,2]
[326550322,1715105548563,-500.0,0.00019178,2]
[326550323,1715105548575,-2436.75,0.00019178,2]
[326550324,1715105548588,-500.0,0.00019178,2]
[326550325,1715105548600,-2730.02,0.00019178,2]
[326550326,1715105548616,-895.93,0.00019178,2]
[326550327,1715105548627,-1652.52,0.00019178,2]
[326550328,1715105548637,-519.73,0.00019178,2]
[326550329,1715105548656,-549.07,0.00019178,2]
[326550330,1715105548668,-500.0,0.00019178,2]
[326550331,1715105548679,-1304.96,0.00019178,2]
[326550332,1715105548689,-1593.18,0.00019178,2]
[326550333,1715105548721,-1412.02,0.00019178,2]
[326550334,1715105548750,-762.1,0.00019178,2]
[326550335,1715105548797,-38643.67,0.00019178,2]
[326550336,1715105548813,-500.0,0.00019178,2]
[326550337,1715105548831,-3669.89,0.00019178,2]
[326550338,1715105548842,-151.0,0.00019178,2]
[326550339,1715105548853,-151.0,0.00019178,2]
[326550340,1715105548871,-151.0,0.00019178,2]
[326550341,1715105548882,-9384.72,0.00019178,2]
[326550342,1715105548905,-500.0,0.00019178,2]
[326550343,1715105548916,-151.0,0.00019178,2]
[326550344,1715105548927,-151.0,0.00019178,2]
[326550345,1715105548942,-500.0,0.00019178,2]
[326550346,1715105548953,-500.0,0.00019178,2]
[326550347,1715105548963,-151.0,0.00019178,2]
[326550348,1715105548975,-1170.08,0.00019178,2]
[326550349,1715105548988,-1941.14,0.00019178,2]
[326550350,1715105549002,-541.81,0.00019178,2]
[326550351,1715105549014,-618.14,0.00019178,2]
[326550352,1715105549028,-500.0,0.00019178,2]
[326550353,1715105549038,-3197.79,0.00019178,2]
[326550354,1715105549050,-631.46,0.00019178,2]
[326550355,1715105549061,-1921.54,0.00019178,2]
[326550356,1715105549074,-913.619557,0.00019178,2]
[326550357,1715105549090,-3099.44,0.00019178,2]
[326550358,1715105549103,-913.619557,0.00019178,2]
[326550359,1715105549114,-500.0,0.00019178,2]
[326550360,1715105549133,-913.619557,0.00019178,2]
[326550361,1715105549144,-4560.48,0.00019178,2]
[326550362,1715105549157,-500.0,0.00019178,2]
[326550363,1715105549168,-594.96,0.00019178,2]
[326550364,1715105549179,-1682.37,0.00019178,2]
[326550365,1715105549189,-1063.33,0.00019178,2]
[326550366,1715105549201,-913.619557,0.00019178,2]
[326550367,1715105549211,-3698.43,0.00019178,2]
[326550368,1715105549260,-913.619557,0.00019178,2]
[326550369,1715105549273,-913.619557,0.00019178,2]
[326550370,1715105549284,-808.36,0.00019178,2]
[326550371,1715105549302,-500.0,0.00019178,2]
[326550372,1715105549334,-500.0,0.00019178,2]
[326550373,1715105549345,-500.0,0.00019178,2]
[326550374,1715105549355,-500.0,0.00019178,2]
[326550375,1715105549386,-2956.08,0.00019178,2]
[326550376,1715105549398,-528.47,0.00019178,2]
[326550377,1715105549410,-17712.58,0.00019178,2]
[326550378,1715105549424,-3212.42,0.00019178,2]
[326550379,1715105549436,-1075.62,0.00019178,2]
[326550380,1715105549451,-684.43,0.00019178,2]
[326550381,1715105549461,-2995.55,0.00019178,2]
[326550382,1715105549471,-502.62,0.00019178,2]
[326550383,1715105549492,-4441.97,0.00019178,2]
[326550384,1715105549503,-500.0,0.00019178,2]
[326550385,1715105549513,-1716.07,0.00019178,2]
[326550386,1715105549525,-624.38946149,0.00019178,2]
[326550387,1715105549535,-8698.62,0.00019178,2]
[326550388,1715105549546,-517.61,0.00019178,2]
[326550389,1715105549560,-170.70591312,0.00019178,2]
[326550390,1715105549572,-500.0,0.00019178,2]
[326550391,1715105549583,-7988.89,0.00019178,2]
[326550392,1715105549598,-500.0,0.00019178,2]
[326550393,1715105549640,-1169.68,0.00019178,2]
[326550394,1715105549650,-500.0,0.00019178,2]
[326550395,1715105549665,-2365.32,0.00019178,2]
[326550396,1715105549676,-1802.09,0.00019178,2]
[326550397,1715105549686,-531.45288719,0.00019178,2]
[326550398,1715105549697,-2488.08,0.00019178,2]
[326550399,1715105549711,-2525.86,0.00019178,2]
[326550400,1715105549736,-747.34,0.00019178,2]
[326550401,1715105549751,-500.0,0.00019178,2]
[326550402,1715105549761,-672.01,0.00019178,2]
[326550403,1715105549772,-500.0,0.00019178,2]
[326550404,1715105549783,-2196.88,0.00019178,2]
[326550405,1715105549802,-500.0,0.00019178,2]
[326550406,1715105549817,-1274.76,0.00019178,2]
[326550407,1715105549832,-862.12,0.00019178,2]
[326550408,1715105549843,-2680.71,0.00019178,2]
[326550409,1715105549856,-1924.04,0.00019178,2]
[326550410,1715105549870,-3541.95,0.00019178,2]
[326550411,1715105549886,-1745.92,0.00019178,2]
[326550412,1715105549900,-2146.45,0.00019178,2]
[326550413,1715105549911,-3103.92,0.00019178,2]
[326550414,1715105549930,-500.0,0.00019178,2]
[326550415,1715105549944,-500.0,0.00019178,2]
[326550416,1715105549971,-1000.0,0.00019178,2]
[326550417,1715105549982,-500.0,0.00019178,2]
[326550418,1715105549994,-297.49511512,0.00019178,2]
[326550419,1715105550005,-756.1,0.00019178,2]
[326550420,1715105550021,-1873.65,0.00019178,2]
[326550421,1715105550032,-2541.93,0.00019178,2]
[326550422,1715105550046,-1454.37,0.00019178,2]
[326550423,1715105550056,-507.12,0.00019178,2]
[326550424,1715105550072,-1355.89,0.00019178,2]
[326550425,1715105550086,-857.95,0.00019178,2]
[326550426,1715105550096,-3339.3,0.00019178,2]
[326550427,1715105550109,-5966.98,0.00019178,2]
[326550428,1715105550132,-500.0,0.00019178,2]
[326550429,1715105550171,-500.0,0.00019178,2]
[326550430,1715105550220,-635.24,0.00019178,2]
[326550431,1715105550237,-1339.67,0.00019178,2]
[326550432,1715105550247,-638.44,0.00019178,2]
[326550433,1715105550260,-2977.97,0.00019178,2]
[326550434,1715105550280,-2330.41,0.00019178,2]
[326550435,1715105550292,-602.67,0.00019178,2]
[326550436,1715105550304,-708.04,0.00019178,2]
[326550437,1715105550314,-3811.26,0.00019178,2]
[326550438,1715105550325,-500.0,0.00019178,2]
[326550439,1715105550335,-1042.73,0.00019178,2]
[326550440,1715105550352,-1963.7,0.00019178,2]
[326550441,1715105550368,-2861.46,0.00019178,2]
[326550442,1715105550380,-618.46,0.00019178,2]
[326550443,1715105550393,-500.0,0.00019178,2]
[326550444,1715105550404,-3883.38,0.00019178,2]
[326550445,1715105550417,-1352.62,0.00019178,2]
[326550446,1715105550437,-4263.48,0.00019178,2]
[326550447,1715105550464,-2547.66,0.00019178,2]
[326550448,1715105550475,-2140.87,0.00019178,2]
[326550449,1715105550489,-709.65,0.00019178,2]
[326550450,1715105550500,-2198.63,0.00019178,2]
[326550451,1715105550514,-500.0,0.00019178,2]
[326550452,1715105550529,-500.0,0.00019178,2]
[326550453,1715105550548,-500.0,0.00019178,2]
[326550454,1715105550558,-5121.23,0.00019178,2]
[326550455,1715105550570,-3075.75,0.00019178,2]
[326550456,1715105550580,-500.0,0.00019178,2]
[326550457,1715105550593,-3237.33,0.00019178,2]
[326550458,1715105550604,-500.0,0.00019178,2]
[326550459,1715105550614,-4095.92,0.00019178,2]
[326550460,1715105550625,-500.0,0.00019178,2]
[326550461,1715105550636,-371.54356764,0.00019178,2]
[326550462,1715105550646,-500.0,0.00019178,2]
[326550463,1715105550658,-500.0,0.00019178,2]
[326550464,1715105550669,-1411.6,0.00019178,2]
[326550465,1715105550680,-500.0,0.00019178,2]
[326550466,1715105550693,-1080.84,0.00019178,2]
[326550467,1715105550736,-1064.68,0.00019178,2]
[326550468,1715105550746,-360.75584338,0.00019178,2]
[326550469,1715105550759,-7176.66,0.00019178,2]
[326550470,1715105550777,-7598.04,0.00019178,2]
[326550471,1715105550787,-823.3,0.00019178,2]
[326550472,1715105550798,-1138.76,0.00019178,2]
[326550473,1715105550808,-1486.57,0.00019178,2]
[326550474,1715105550818,-2435.41,0.00019178,2]
[326550475,1715105550834,-2761.44,0.00019178,2]
[326550476,1715105550849,-2200.2,0.00019178,2]
[326550477,1715105550860,-200.0,0.00019178,2]
[326550478,1715105550870,-156.51,0.00019178,2]
[326550479,1715105550890,-157.86,0.00019178,2]
[326550480,1715105550905,-364.32,0.00019178,2]
[326550481,1715105550916,-696.56,0.000192,2]
[326550482,1715105550926,-763.75,0.000192,2]
[326550483,1715105550969,-782.1,0.000192,2]
[326550484,1715105550980,-345.46009828,0.00019352,2]
[326550485,1715105551021,-3542.26415426,0.00019352,2]
[326550486,1715105551051,-190.35446174,0.00019352,2]
[326550487,1715105551061,-253.01661547,0.00019352,2]
[326550488,1715105551071,-16244.7,0.0001945,2]
[326550489,1715105551083,-253.148435,0.0001945,2]
[326550490,1715105551098,-902.13,0.00019452,2]
[326550491,1715105551110,-500.0,0.00019452,2]
[326550492,1715105551124,-500.0,0.00019452,2]
[326550493,1715105551151,-500.0,0.00019452,2]
[326550494,1715105551177,-500.0,0.00019452,2]
[326550495,1715105551194,-500.0,0.00019452,2]
[326550496,1715105551217,-500.0,0.00019452,2]
[326550497,1715105551228,-964.26,0.00019452,2]
[326550498,1715105551248,-500.0,0.00019452,2]
[326550499,1715105551281,-500.0,0.00019452,2]
[326550500,1715105551291,-500.0,0.00019452,2]
[326550501,1715105551303,-712.97,0.00019452,2]
[326550502,1715105551313,-500.0,0.00019452,2]
[326550503,1715105551324,-500.0,0.00019452,2]
[326550504,1715105551340,-500.0,0.00019452,2]
[326550505,1715105551350,-500.0,0.00019452,2]
[326550506,1715105551360,-500.0,0.00019452,2]
[326550507,1715105551370,-500.0,0.00019452,2]
[326550508,1715105551382,-500.0,0.00019452,2]
[326550509,1715105551396,-500.0,0.00019452,2]
[326550510,1715105551406,-444.54671438,0.00019452,2]
[326550511,1715105551438,-500.0,0.00019452,2]
[326550512,1715105551449,-500.0,0.00019452,2]
[326550513,1715105551480,-258.1604645,0.00019452,2]
[326550514,1715105551526,-500.0,0.00019452,2]
[326550515,1715105551541,-500.0,0.00019452,2]
[326550516,1715105551554,-500.0,0.00019452,2]
[326550517,1715105551582,-759.45,0.00019452,2]
[326550518,1715105551593,-500.0,0.00019452,2]
[326550519,1715105551607,-696.64,0.00019452,2]
[326550520,1715105551665,-500.0,0.00019452,2]
[326550521,1715105551679,-500.0,0.00019452,2]
[326550522,1715105551690,-749.43,0.00019452,2]
[326550523,1715105551705,-500.0,0.00019452,2]
[326550524,1715105551726,-500.0,0.00019452,2]
[326550525,1715105551736,-992.5,0.00019452,2]
[326550526,1715105551746,-500.0,0.00019452,2]
[326550527,1715105551757,-500.0,0.00019452,2]
[326550528,1715105551767,-500.0,0.00019452,2]
[326550529,1715105551778,-500.0,0.00019452,2]
[326550530,1715105551788,-500.0,0.00019452,2]
[326550531,1715105551799,-500.0,0.00019452,2]
[326550532,1715105551829,-500.0,0.00019452,2]
[326550533,1715105551841,-500.0,0.00019452,2]
[326550534,1715105551878,-500.0,0.00019452,2]
[326550535,1715105551892,-1147.18,0.00019452,2]
[326550536,1715105552154,-891.13,0.00019452,2]
[326550537,1715105552165,-500.0,0.00019452,2]
[326550538,1715105552176,-500.0,0.00019452,2]
[326550539,1715105552186,-508.65599046,0.00019452,2]
[326550540,1715105552218,-652.58,0.00019452,2]
[326550541,1715105552230,-714.55,0.00019452,2]
[326550542,1715105552244,-1542.46,0.00019452,2]
[326550543,1715105552255,-590.41,0.00019452,2]
[326550544,1715105552266,-500.0,0.00019452,2]
[326550545,1715105552302,-957.15,0.00019452,2]
[326550546,1715105552314,-500.0,0.00019452,2]
[326550547,1715105552330,-500.0,0.00019452,2]
[326550548,1715105552346,-500.0,0.00019452,2]
[326550549,1715105552362,-500.0,0.00019452,2]
[326550550,1715105552382,-506.94246479,0.00019452,2]
[326550551,1715105552392,-507.3720702,0.00019452,2]
[326550552,1715105552406,-909.47,0.00019452,2]
[326550553,1715105552441,-500.0,0.00019452,2]
[326550554,1715105552464,-619.98,0.00019452,2]
[326550555,1715105552481,-600.34,0.00019452,2]
[326550556,1715105552500,-570.7613696,0.00019452,2]
[326550557,1715105552511,-500.0,0.00019452,2]
[326550558,1715105552536,-500.0,0.00019452,2]
[326550559,1715105552549,-512.88,0.00019452,2]
[326550560,1715105552560,-500.0,0.00019452,2]
[326550561,1715105552571,-521.41623316,0.00019452,2]
[326550562,1715105552586,-500.0,0.00019452,2]
[326550563,1715105552600,-502.72,0.00019452,2]
[326550564,1715105552610,-500.0,0.00019452,2]
[326550565,1715105552620,-500.0,0.00019452,2]
[326550566,1715105552646,-500.0,0.00019452,2]
[326550567,1715105552680,-500.0,0.00019452,2]
[326550568,1715105552694,-608.4,0.00019452,2]
[326550569,1715105552710,-775.54,0.00019452,2]
[326550570,1715105552735,-744.29,0.00019452,2]
[326550571,1715105552756,-635.25,0.00019452,2]
[326550572,1715105552782,-500.0,0.00019452,2]
[326550573,1715105552793,-1234.34,0.00019452,2]
[326550574,1715105552806,-675.56,0.00019452,2]
[326550575,1715105552818,-947.66,0.00019452,2]
[326550576,1715105552828,-477.57415119,0.00019452,2]
[326550577,1715105552839,-996.04,0.00019452,2]
[326550578,1715105552850,-500.0,0.00019452,2]
[326550579,1715105552866,-500.0,0.00019452,2]
[326550580,1715105552881,-500.0,0.00019452,2]
[326550581,1715105552893,-500.0,0.00019452,2]
[326550582,1715105552903,-2194.28,0.00019452,2]
[326550583,1715105552915,-556.64581782,0.00019452,2]
[326550584,1715105552944,-500.0,0.00019452,2]
[326550585,1715105552968,-500.0,0.00019452,2]
[326550586,1715105552993,-500.0,0.00019452,2]
[326550587,1715105553003,-603.04,0.00019452,2]
[326550588,1715105553028,-1659.65,0.00019452,2]
[326550589,1715105553038,-500.0,0.00019452,2]